lending/lending_fUSD_20240128
["ID","MTS","AMOUNT","RATE_DAILY","PERIOD"]
[312939466,1706470310147,-1012.49,0.0005452,7]
[312939467,1706470310156,-263.17,0.0005452,120]
[312939468,1706470310165,-500.0,0.0005452,120]
[312939469,1706470310174,-500.0,0.0005452,120]
[312939470,1706470310183,-500.0,0.0005452,120]
[312939471,1706470310193,-218.46928042,0.0005452,120]
[312939472,1706470310202,-500.0,0.0005452,120]
[312939473,1706470310211,-500.0,0.0005452,120]
[312939474,1706470310221,-1000.0,0.0005452,2]
[312939475,1706470310230,-500.0,0.0005452,120]
[312939476,1706470310239,-500.0,0.0005452,120]
[312939477,1706470310248,-500.0,0.0005452,120]
[312939478,1706470310258,-524.66,0.0005452,120]
[312939479,1706470310267,-942.54,0.0005452,120]
[312939480,1706470310276,-500.0,0.0005452,120]
[312939481,1706470310284,-500.0,0.0005452,120]
[312939482,1706470310293,-500.0,0.0005452,120]
[312939483,1706470310302,-500.0,0.0005452,120]
[312939484,1706470310312,-500.0,0.0005452,120]
[312939485,1706470310320,-500.0,0.0005452,120]
[312939486,1706470310330,-500.0,0.0005452,120]
[312939487,1706470310339,-513.19,0.0005452,120]
[312939488,1706470310348,-500.0,0.0005452,120]
[312939489,1706470310357,-797.06,0.0005452,2]
[312939490,1706470310366,-1179.11,0.0005452,7]
[312939491,1706470310375,-500.0,0.0005452,120]
[312939492,1706470310384,-500.0,0.0005452,120]
[312939493,1706470310394,-500.0,0.0005452,120]
[312939494,1706470310403,-500.0,0.0005452,120]
[312939495,1706470310412,-506.17,0.0005452,120]
[312939496,1706470310421,-363.00794479,0.0005452,120]
[312939497,1706470310430,-537.17,0.0005452,120]
[312939498,1706470310439,-546.99,0.0005452,120]
[312939499,1706470310448,-500.0,0.0005452,120]
[312939500,1706470310457,-500.0,0.0005452,120]
[312939501,1706470310466,-193.94042356,0.0005452,120]
[312939502,1706470310475,-500.0,0.0005452,120]
[312939503,1706470310484,-500.0,0.0005452,120]
[312939504,1706470310493,-500.0,0.0005452,120]
[312939505,1706470310502,-500.0,0.0005452,120]
[312939506,1706470310512,-500.0,0.0005452,120]
[312939507,1706470310521,-500.0,0.0005452,120]
[312939508,1706470310530,-500.0,0.0005452,120]
[312939509,1706470310540,-500.0,0.0005452,120]
[312939510,1706470310550,-500.02,0.0005452,120]
[312939511,1706470310560,-500.0,0.0005452,120]
[312939512,1706470310569,-500.0,0.0005452,120]
[312939513,1706470310578,-500.0,0.0005452,120]
[312939514,1706470310588,-1086.47,0.0005452,120]
[312939515,1706470310597,-500.0,0.0005452,120]
[312939516,1706470310606,-500.0,0.0005452,120]
[312939517,1706470310615,-532.84645008,0.0005452,120]
[312939518,1706470310625,-500.0,0.0005452,120]
[312939519,1706470310636,-484.89,0.0005452,120]
[312939520,1706470310645,-500.0,0.0005452,120]
[312939521,1706470310655,-500.0,0.0005452,120]
[312939522,1706470310664,-500.0,0.0005452,120]
[312939523,1706470310673,-500.0,0.0005452,120]
[312939524,1706470310682,-500.0,0.0005452,120]
[312939525,1706470310692,-500.0,0.0005452,120]
[312939526,1706470310701,-500.0,0.0005452,120]
[312939527,1706470310711,-500.0,0.0005452,120]
[312939528,1706470310720,-500.0,0.0005452,120]
[312939529,1706470310731,-500.0,0.0005452,120]
[312939530,1706470310741,-336.77069997,0.0005452,120]
[312939531,1706470310750,-1000.0,0.0005452,7]
[312939532,1706470310759,-542.92072013,0.0005452,120]
[312939533,1706470310768,-500.0,0.0005452,120]
[312939534,1706470310778,-330.0,0.0005452,120]
[312939535,1706470310787,-500.0,0.0005452,120]
[312939536,1706470310797,-500.0,0.0005452,120]
[312939537,1706470310807,-500.0,0.0005452,120]
[312939538,1706470310817,-280.27055461,0.0005452,120]
[312939539,1706470310827,-500.0,0.0005452,120]
[312939540,1706470310836,-500.0,0.0005452,120]
[312939541,1706470310846,-500.0,0.0005452,120]
[312939542,1706470310855,-500.0,0.0005452,120]
[312939543,1706470310864,-958.05,0.0005452,120]
[312939544,1706470310873,-500.0,0.0005452,120]
[312939545,1706470310883,-500.0,0.0005452,120]
[312939546,1706470310892,-866.15,0.0005452,120]
[312939547,1706470310901,-500.0,0.0005452,120]
[312939548,1706470310910,-1000.0,0.0005452,7]
[312939549,1706470310920,-1465.95,0.0005452,120]
[312939550,1706470310929,-558.8,0.0005452,120]
[312939551,1706470310938,-702.82,0.0005452,120]
[312939552,1706470310947,-500.0,0.0005452,120]
[312939553,1706470310957,-528.63,0.0005452,120]
[312939554,1706470310966,-1050.63,0.0005452,120]
[312939555,1706470310976,-500.0,0.0005452,120]
[312939556,1706470310985,-2515.85,0.0005452,5]
[312939557,1706470310995,-538.33,0.0005452,120]
[312939558,1706470311005,-500.0,0.0005452,120]
[312939559,1706470311018,-518.95,0.0005452,120]
[312939560,1706470311028,-585.24,0.0005452,120]
[312939561,1706470311037,-540.09,0.0005452,120]
[312939562,1706470311047,-500.0,0.0005452,120]
[312939563,1706470311062,-500.0,0.0005452,120]
[312939564,1706470311071,-500.0,0.0005452,120]
[312939565,1706470311081,-500.0,0.0005452,120]
[312939566,1706470311090,-500.0,0.0005452,120]
[312939567,1706470311101,-604.09,0.0005452,120]
[312939568,1706470311110,-500.0,0.0005452,120]
[312939569,1706470311120,-667.98,0.0005452,2]
[312939570,1706470311130,-980.3,0.0005452,120]
[312939571,1706470311139,-1037.01,0.0005452,120]
[312939572,1706470311149,-500.0,0.0005452,120]
[312939573,1706470311158,-935.8,0.0005452,120]
[312939574,1706470311167,-1201.8,0.0005452,120]
[312939575,1706470311176,-649.1,0.0005452,120]
[312939576,1706470311185,-1061.64,0.0005452,120]
[312939577,1706470311195,-500.0,0.0005452,120]
[312939578,1706470311204,-500.0,0.0005452,120]
[312939579,1706470311213,-687.49,0.0005452,120]
[312939580,1706470311222,-500.0,0.0005452,120]
[312939581,1706470311232,-934.77,0.0005452,120]
[312939582,1706470311241,-500.0,0.0005452,120]
[312939583,1706470311251,-710.56,0.0005452,120]
[312939584,1706470311260,-596.07,0.0005452,120]
[312939585,1706470311270,-500.0,0.0005452,120]
[312939586,1706470311279,-384.57,0.0005452,120]
[312939587,1706470311288,-364.93293099,0.0005452,120]
[312939588,1706470311298,-735.56,0.0005452,120]
[312939589,1706470311308,-500.0,0.0005452,120]
[312939590,1706470311318,-500.0,0.0005452,120]
[312939591,1706470311327,-500.0,0.0005452,120]
[312939592,1706470311337,-692.89,0.0005452,120]
[312939593,1706470311347,-500.0,0.0005452,120]
[312939594,1706470311357,-500.0,0.0005452,120]
[312939595,1706470311366,-760.18,0.0005452,120]
[312939596,1706470311377,-500.0,0.0005452,120]
[312939597,1706470311387,-500.0,0.0005452,120]
[312939598,1706470311396,-537.29,0.0005452,120]
[312939599,1706470311405,-500.0,0.0005452,120]
[312939600,1706470311415,-670.03,0.0005452,120]
[312939601,1706470311425,-949.98,0.0005452,120]
[312939602,1706470311435,-165.19689154,0.0005452,120]
[312939603,1706470311444,-500.0,0.0005452,120]
[312939604,1706470311453,-465.76001868,0.0005452,120]
[312939605,1706470311463,-1013.95,0.0005452,120]
[312939606,1706470311473,-550.0,0.0005452,30]
[312939607,1706470311483,-500.0,0.0005452,120]
[312939608,1706470311493,-395.70484485,0.0005452,120]
[312939609,1706470311503,-500.0,0.0005452,120]
[312939610,1706470311512,-418.74,0.0005452,120]
[312939611,1706470311522,-635.57,0.0005452,120]
[312939612,1706470311531,-500.0,0.0005452,120]
[312939613,1706470311541,-500.0,0.0005452,120]
[312939614,1706470311551,-600.05,0.0005452,120]
[312939615,1706470311561,-500.0,0.0005452,120]
[312939616,1706470311570,-500.0,0.0005452,120]
[312939617,1706470311580,-500.0,0.0005452,120]
[312939618,1706470311590,-500.0,0.0005452,120]
[312939619,1706470311599,-576.89,0.0005452,120]
[312939620,1706470311609,-913.1,0.0005452,120]
[312939621,1706470311621,-500.0,0.0005452,120]
[312939622,1706470311631,-500.0,0.0005452,120]
[312939623,1706470311641,-699.2,0.0005452,120]
[312939624,1706470311651,-500.0,0.0005452,120]
[312939625,1706470311661,-859.35,0.0005452,120]
[312939626,1706470311671,-500.0,0.0005452,120]
[312939627,1706470311681,-500.0,0.0005452,120]
[312939628,1706470311690,-233.97,0.0005452,120]
[312939629,1706470311700,-500.0,0.0005452,120]
[312939630,1706470311709,-500.0,0.0005452,120]
[312939631,1706470311719,-566.54,0.0005452,120]
[312939632,1706470311729,-500.0,0.0005452,120]
[312939633,1706470311739,-500.0,0.0005452,120]
[312939634,1706470311749,-360.3,0.0005452,120]
[312939635,1706470311759,-500.0,0.0005452,120]
[312939636,1706470311768,-625.1258783,0.0005452,120]
[312939637,1706470311778,-500.0,0.0005452,120]
[312939638,1706470311787,-500.0,0.0005452,120]
[312939639,1706470311798,-500.0,0.0005452,120]
[312939640,1706470311807,-663.0,0.0005452,120]
[312939641,1706470311817,-524.36,0.0005452,120]
[312939642,1706470311827,-500.0,0.0005452,120]
[312939643,1706470311837,-500.0,0.0005452,120]
[312939644,1706470311847,-500.0,0.0005452,120]
[312939645,1706470311856,-993.17,0.0005452,5]
[312939646,1706470311866,-500.0,0.0005452,120]
[312939647,1706470311877,-500.0,0.0005452,120]
[312939648,1706470311886,-1254.98,0.0005452,7]
[312939649,1706470311896,-1000.0,0.0005452,31]
[312939650,1706470311906,-593.23,0.0005452,120]
[312939651,1706470311916,-500.0,0.0005452,120]
[312939652,1706470311925,-500.0,0.0005452,120]
[312939653,1706470311936,-787.1,0.0005452,120]
[312939654,1706470311945,-255.46680799,0.0005452,120]
[312939655,1706470311954,-500.0,0.0005452,120]
[312939656,1706470311963,-727.11,0.0005452,120]
[312939657,1706470311973,-1003.11,0.0005452,120]
[312939658,1706470311983,-621.44230535,0.0005452,120]
[312939659,1706470311994,-500.0,0.0005452,120]
[312939660,1706470312005,-500.0,0.0005452,120]
[312939661,1706470312017,-500.0,0.0005452,120]
[312939662,1706470312028,-865.33,0.0005452,120]
[312939663,1706470312037,-729.98,0.0005452,120]
[312939664,1706470312047,-500.0,0.0005452,120]
[312939665,1706470312058,-500.0,0.0005452,120]
[312939666,1706470312068,-500.0,0.0005452,120]
[312939667,1706470312077,-571.22,0.0005452,120]
[312939668,1706470312087,-500.0,0.0005452,120]
[312939669,1706470312098,-733.2,0.0005452,120]
[312939670,1706470312108,-829.02,0.0005452,120]
[312939671,1706470312117,-500.0,0.0005452,120]
[312939672,1706470312127,-500.0,0.0005452,120]
[312939673,1706470312137,-500.0,0.0005452,120]
[312939674,1706470312146,-500.0,0.0005452,120]
[312939675,1706470312155,-573.62,0.0005452,120]
[312939676,1706470312164,-500.0,0.0005452,120]
[312939677,1706470312174,-834.44,0.0005452,120]
[312939678,1706470312184,-851.16,0.0005452,120]
[312939679,1706470312194,-1000.0,0.0005452,20]
[312939680,1706470312203,-875.07,0.0005452,120]
[312939681,1706470312213,-500.0,0.0005452,120]
[312939682,1706470312222,-1079.37,0.0005452,120]
[312939683,1706470312231,-1018.07,0.0005452,120]
[312939684,1706470312242,-500.0,0.0005452,120]
[312939685,1706470312253,-995.96,0.0005452,120]
[312939686,1706470312262,-780.4,0.0005452,120]
[312939687,1706470312272,-500.0,0.0005452,120]
[312939688,1706470312282,-500.0,0.0005452,120]
[312939689,1706470312291,-500.0,0.0005452,120]
[312939690,1706470312300,-500.0,0.0005452,120]
[312939691,1706470312309,-500.0,0.0005452,120]
[312939692,1706470312318,-709.25,0.0005452,120]
[312939693,1706470312327,-500.0,0.0005452,120]
[312939694,1706470312336,-445.55758603,0.0005452,7]
[312939695,1706470312345,-500.0,0.0005452,120]
[312939696,1706470312354,-500.0,0.0005452,120]
[312939697,1706470312363,-500.0,0.0005452,120]
[312939698,1706470312373,-500.0,0.0005452,120]
[312939699,1706470312383,-500.0,0.0005452,120]
[312939700,1706470312394,-383.88199279,0.0005452,120]
[312939701,1706470312404,-445.19156264,0.0005452,120]
[312939702,1706470312413,-500.0,0.0005452,120]
[312939703,1706470312422,-667.21,0.0005452,120]
[312939704,1706470312431,-1254.44,0.0005452,120]
[312939705,1706470312441,-500.0,0.0005452,120]
[312939706,1706470312450,-500.0,0.0005452,120]
[312939707,1706470312459,-500.0,0.0005452,120]
[312939708,1706470312468,-500.0,0.0005452,120]
[312939709,1706470312478,-500.0,0.0005452,120]
[312939710,1706470312487,-500.0,0.0005452,120]
[312939711,1706470312496,-752.97,0.0005452,120]
[312939712,1706470312506,-500.0,0.0005452,120]
[312939713,1706470312515,-521.4,0.0005452,120]
[312939714,1706470312525,-769.32,0.0005452,120]
[312939715,1706470312534,-205.44,0.0005452,120]
[312939716,1706470312543,-780.39,0.0005452,120]
[312939717,1706470312553,-673.98,0.0005452,120]
[312939718,1706470312562,-500.0,0.0005452,120]
[312939719,1706470312571,-806.83,0.0005452,120]
[312939720,1706470312581,-380.88,0.0005452,120]
[312939721,1706470312590,-655.92,0.0005452,120]
[312939722,1706470312600,-809.17,0.0005452,120]
[312939723,1706470312610,-500.0,0.0005452,120]
[312939724,1706470312619,-500.0,0.0005452,120]
[312939725,1706470312631,-500.0,0.0005452,120]
[312939726,1706470312641,-500.0,0.0005452,120]
[312939727,1706470312651,-452.95,0.00054521,30]
[312939728,1706470312663,-359.58,0.00054521,30]
[312939729,1706470312673,-500.0,0.00054521,90]
[312939730,1706470312682,-2000.0,0.00054521,3]
[312939731,1706470312693,-2006.4691,0.00054521,3]
[312939732,1706470312704,-489.71573801,0.00054527,60]
[312939733,1706470312714,-150.0,0.0005453,4]
[312939734,1706470312725,-360.32885597,0.00054534,60]
[312939735,1706470312735,-5445.6538794,0.0005454,21]
[312939736,1706470312744,-161.33670803,0.00054542,60]
[312939737,1706470312754,-152.50530026,0.00054544,60]
[312939738,1706470312764,-360.32885597,0.00054545,60]
[312939739,1706470312773,-201.18589708,0.00054546,60]
[312939740,1706470312783,-153.61013367,0.00054548,60]
[312939741,1706470312793,-543.892231,0.0005456,120]
[312939742,1706470312803,-201.18589708,0.00054567,60]
[312939743,1706470312813,-153.79459058,0.00054568,60]
[312939744,1706470312822,-155.46441186,0.00054569,60]
[312939745,1706470312831,-153.79459058,0.00054569,60]
[312939746,1706470312841,-201.18589708,0.00054569,60]
[312939747,1706470312851,-919.66051627,0.0005458,60]
[312939748,1706470312861,-919.66051627,0.00054581,60]
[312939749,1706470312871,-154.39943299,0.00054591,60]
[312939750,1706470312880,-175.82197617,0.00054594,60]
[312939751,1706470312889,-151.44914822,0.00054596,60]
[312939752,1706470312899,-150.101,0.000546,30]
[312939753,1706470312911,-150.101,0.000546,30]
[312939754,1706470312920,-150.101,0.000546,30]
[312939755,1706470312929,-297.94404871,0.000546,30]
[312939756,1706470312939,-157.04067162,0.00054603,60]
[312939757,1706470312948,-150.50894753,0.00054606,60]
[312939758,1706470312957,-151.44914822,0.00054606,60]
[312939759,1706470312967,-489.71573801,0.00054607,60]
[312939760,1706470312976,-151.44914822,0.00054614,60]
[312939761,1706470312985,-854.0,0.0005462,30]
[312939762,1706470312995,-499.0,0.0005462,30]
[312939763,1706470313004,-37259.32202972,0.0005462,30]
[312939764,1706470313041,-1041.72948904,0.0005462,30]
[312939765,1706470313053,-264.1135013,0.0005462,30]
[312939766,1706470313065,-306.0,0.0005462,30]
[312939767,1706470313077,-879.74242538,0.0005462,30]
[312939768,1706470313098,-676.717704,0.00041096,14]
[312939769,1706470313108,-4108.28229595,0.0005462,30]
[312939770,1706470313120,-335.30000129,0.0005462,30]
[312939776,1706471385552,-2229.5496,0.00022964,2]
[312939777,1706471385584,-309.06,0.0002472,2]
[312939815,1706471434842,-154.9539485,0.000249,2]
[312939816,1706471434852,-150.0,0.00024999,2]
[312939817,1706471434861,-370.72105149,0.00025,3]
[312939818,1706471434915,-179.27894851,0.00025,3]
[312939819,1706471434924,-603.20278216,0.00025,2]
[312939820,1706471434943,-1300.54717068,0.00025,2]
[312939821,1706471434952,-1587.22750165,0.00026605,2]
[312939822,1706471434961,-935.55189282,0.00026605,2]
[312939823,1706471434971,-304.11862422,0.00026606,2]
[312939824,1706471434979,-154.95394842,0.00026607,2]
[312939825,1706471434989,-150.0,0.00026616,2]
[312939826,1706471434998,-163.77,0.0002666,2]
[312939827,1706471435007,-176.4,0.00026685,2]
[312939828,1706471435017,-6472.82,0.00026694,2]
[312939829,1706471435026,-3291.82,0.00026694,2]
[312939830,1706471435035,-3151.21,0.00026694,2]
[312939831,1706471435044,-31.58086221,0.00026696,2]
[312939832,1706471435055,-218.41913779,0.00026696,2]
[312939833,1706471435065,-320.4755224,0.00026696,2]
[312939834,1706471435119,-2020.71528,0.00026696,2]
[312939835,1706471435134,-211.2591976,0.00026696,2]
[312939836,1706471435143,-368.8403224,0.00026698,2]
[312939837,1706471435154,-131.1596776,0.00026698,2]
[312939838,1706471435163,-337.3591836,0.00026717,2]
[312939840,1706471435179,-412.74688738,0.00026717,2]
[312939842,1706471435193,-1249.89392902,0.00026717,2]
[312939844,1706471435202,-236.25268828,0.00026762,2]
[312939846,1706471435211,-6881.25338271,0.00026763,2]
[312939854,1706471438963,-1699.13,0.00026763,2]
[312939855,1706471438974,-676.14902876,0.00026763,2]
[312939856,1706471438998,-12764.66608279,0.00026763,2]
[312939857,1706471439010,-1878.80150574,0.00026763,2]
[312939858,1706471439019,-250.0,0.00026771,2]
[312939859,1706471439029,-487.24,0.00026775,2]
[312939860,1706471439038,-575.01,0.00026777,2]
[312939861,1706471439047,-150.0,0.00026784,2]
[312939862,1706471439057,-200.0,0.00026793,2]
[312939863,1706471439066,-200.0,0.00026869,2]
[312939864,1706471439075,-157.31,0.00026882,2]
[312939865,1706471439084,-662.09522237,0.00026899,2]
[312939866,1706471439093,-250.0,0.00026899,2]
[312939867,1706471439102,-309.06,0.00026984,2]
[312939868,1706471439111,-129.38327189,0.00026999,2]
[312939869,1706471439123,-1335.55499613,0.00026999,2]
[312939870,1706471439135,-628.70866896,0.00026999,2]
[312939871,1706471439144,-343.67,0.00026999,2]
[312939872,1706471439153,-600.0,0.00027,3]
[312939873,1706471439162,-706.42133104,0.00027,2]
[312939874,1706471439193,-293.56866896,0.00027,2]
[312939875,1706471439202,-4559.28,0.00027,2]
[312939876,1706471439211,-157.31,0.00027022,2]
[312939877,1706471439221,-157.31,0.00027162,2]
[312939878,1706471439230,-157.31,0.00027302,2]
[312939879,1706471439239,-279.43584567,0.00027397,2]
[312939880,1706471439248,-156.1,0.00027397,2]
[312939881,1706471439257,-1259.58911681,0.00027397,2]
[312939882,1706471439268,-220.02088319,0.00027397,2]
[312939883,1706471439277,-157.31,0.00027442,2]
[312939884,1706471439286,-518.71027972,0.00027517,2]
[312939885,1706471439297,-6635.82981051,0.00027517,2]
[312939887,1706471439307,-1479.61,0.00027556,2]
[312939888,1706471439316,-157.31,0.00027582,2]
[312939889,1706471439325,-3154.61,0.00027671,2]
[312939890,1706471439335,-3837.24,0.0002768,2]
[312939891,1706471439345,-1479.61,0.00027714,2]
[312939892,1706471439354,-157.31,0.00027722,2]
[312939894,1706471439363,-1000.0,0.00027736,2]
[312939896,1706471439373,-3048.63024709,0.00027789,2]
[312939897,1706471439382,-732.03592839,0.00027789,2]
[312939898,1706471439391,-1000.0,0.0002779,4]
[312939899,1706471439400,-164.16,0.00027796,2]
[312939900,1706471439410,-157.31,0.00027862,2]
[312939901,1706471439421,-1479.61,0.00027872,2]
[312939902,1706471439430,-156.1,0.00027984,2]
[312939903,1706471439440,-690.39351064,0.00028,2]
[312939904,1706471439449,-157.31,0.00028002,2]
[312939905,1706471439459,-1434.7807415,0.0002803,2]
[312939906,1706471439471,-44.8292585,0.0002803,2]
[312939907,1706471439480,-157.31,0.00028142,2]
[312939908,1706471439496,-5035.19803904,0.00028177,2]
[312939909,1706471439509,-1764.92992517,0.00028177,2]
[312939910,1706471439525,-989.86787046,0.00028177,2]
[312939911,1706471439537,-52020.0,0.00028177,2]
[312939912,1706471439554,-1995.23796533,0.00028177,2]
[312939913,1706471439563,-1479.61,0.00028189,2]
[312939914,1706471439572,-157.31,0.00028282,2]
[312939915,1706471439582,-167.0,0.00028286,2]
[312939916,1706471439591,-154.95394842,0.00028315,2]
[312939917,1706471439601,-571.18439858,0.00028347,2]
[312939918,1706471439613,-403.70016999,0.00028347,2]
[312939919,1706471439629,-504.72543143,0.00028347,2]
[312939920,1706471439639,-575.01,0.00028421,2]
[312939921,1706471439648,-1479.61,0.00028505,2]
[312939922,1706471439658,-156.1,0.00028571,2]
[312939923,1706471439667,-1479.61,0.00028664,2]
[312939924,1706471439677,-1373.24149679,0.00028695,2]
[312939925,1706471439689,-298.62800448,0.00028695,2]
[312939926,1706471439700,-1264.65426,0.00028695,2]
[312939927,1706471439714,-218.08623873,0.00028695,2]
[312939928,1706471439724,-1479.61,0.00028822,2]
[312939929,1706471439733,-206.3283,0.00028899,2]
[312939930,1706471439743,-441.843,0.00028899,2]
[312939931,1706471439753,-2092.4651,0.00028899,2]
[312939932,1706471439763,-583.51085758,0.00028999,2]
[312939964,1706471443198,-271.333657,0.00028999,2]
[312939966,1706471443210,-3021.07399259,0.00028999,2]
[312939968,1706471443221,-4182.00000001,0.00028999,2]
[312939970,1706471443233,-121063.62158182,0.00028999,2]
[312939972,1706471443242,-650.0,0.00029,3]
[312939974,1706471443252,-3427.0,0.00029,2]
[312939975,1706471443263,-1790.0,0.00029,2]
[312939977,1706471443272,-156.1,0.00029159,2]
[312939979,1706471443282,-309.06,0.00029248,2]
[312939981,1706471443291,-179.7,0.00029326,2]
[312939983,1706471443300,-3154.61,0.00029719,2]
[312939984,1706471443309,-156.1,0.00029746,2]
[312939986,1706471443318,-175.84884344,0.000298,2]
[312939988,1706471443329,-2623.23288806,0.00029998,2]
[312939990,1706471443341,-15553.7559523,0.00029999,2]
[312939992,1706471443350,-813.80244593,0.0003,4]
[312939993,1706471443360,-5839.85633545,0.0003,4]
[312939995,1706471443370,-1290.65,0.0003,2]
[312939997,1706471443379,-907.74400073,0.0003,4]
[312939999,1706471443388,-73104.6329296,0.0003,4]
[312940001,1706471443398,-110788.43351165,0.0003,4]
[312940002,1706471443407,-693.41375694,0.0003,2]
[312940004,1706471443417,-154.95394842,0.00030022,2]
[312940006,1706471443427,-575.01,0.00030065,2]
[312940008,1706471443437,-160.73,0.00030137,2]
[312940010,1706471443446,-156.1,0.00030333,2]
[312940011,1706471443455,-179.7,0.00030363,2]
[312940013,1706471443464,-3154.61,0.00030743,2]
[312940015,1706471443474,-155.28167376,0.00030819,4]
[312940017,1706471443483,-156.1,0.0003092,2]
[312940019,1706471443492,-700.0,0.00031,3]
[312940020,1706471443502,-160.73,0.00031133,2]
[312940022,1706471443511,-1000.0,0.00031203,2]
[312940024,1706471443521,-179.7,0.000314,2]
[312940026,1706471443530,-156.1,0.00031507,2]
[312940029,1706471443540,-309.06,0.00031512,2]
[312940030,1706471443549,-180.0,0.00031644,2]
[312940034,1706471443559,-575.01,0.00031709,2]
[312940037,1706471443568,-154.95394842,0.0003173,2]
[312940041,1706471443578,-3154.61,0.00031767,2]
[312940044,1706471443587,-163.77,0.00031992,2]
[312940047,1706471443596,-155.43063941,0.00032,2]
[312940050,1706471443605,-375.20474217,0.00032,2]
[312940052,1706471443615,-156.1,0.00032094,2]
[312940055,1706471443624,-160.73,0.0003213,2]
[312940058,1706471443633,-179.7,0.00032438,2]
[312940060,1706471443642,-202.4125195,0.000325,2]
[312940062,1706471443651,-156.1,0.00032681,2]
[312940063,1706471443661,-500.0,0.00032877,2]
[312940065,1706471443670,-750.0,0.00033,3]
[312940067,1706471443680,-160.73,0.00033126,2]
[312940069,1706471443689,-156.1,0.00033268,2]
[312940072,1706471443698,-575.01,0.00033353,2]
[312940075,1706471443708,-154.95394842,0.00033437,2]
[312940077,1706471443718,-179.7,0.00033475,2]
[312940080,1706471443729,-933.46816753,0.00033611,6]
[312940083,1706471443740,-309.06,0.00033776,2]
[312940086,1706471443750,-156.1,0.00033855,2]
[312940088,1706471443761,-490.28334114,0.00034,4]
[312940091,1706471443772,-507.45614282,0.00034,4]
[312940094,1706471443788,-160.73,0.00034122,2]
[312940097,1706471443799,-156.1,0.00034442,2]
[312940100,1706471443810,-179.7,0.00034512,2]
[312940102,1706471443822,-751.03461538,0.0003467,2]
[312940105,1706471443835,-248.96538462,0.0003467,2]
[312940108,1706471443846,-688.16387981,0.000349,4]
[312940112,1706471443859,-484.159975,0.000349,4]
[312940115,1706471443872,-7808.6872031,0.000349,4]
[312940118,1706471443883,-518.02639126,0.000349,2]
[312940121,1706471443893,-518.02639125,0.000349,2]
[312940124,1706471443904,-518.02639125,0.000349,2]
[312940126,1706471443915,-575.01,0.00034996,2]
[312940128,1706471443925,-800.0,0.00035,3]
[312940130,1706471443935,-155.0,0.00035,2]
[312940132,1706471443945,-1263.30372367,0.00035,4]
[312940134,1706471443956,-5000.0,0.00035,3]
[312940136,1706471443966,-875.45691518,0.00035,2]
[312940138,1706471443977,-875.45691518,0.00035,2]
[312940140,1706471443987,-875.45691518,0.00035,2]
[312940142,1706471443997,-875.45691518,0.00035,2]
[312940145,1706471444006,-875.45691518,0.00035,2]
[312940148,1706471444016,-156.1,0.0003503,2]
[312940152,1706471444027,-609.0,0.00035068,5]
[312940155,1706471444043,-160.73,0.00035118,2]
[312940158,1706471444053,-154.95394842,0.00035144,2]
[312940160,1706471444066,-1839.92,0.00035449,5]
[312940162,1706471444077,-179.7,0.00035549,2]
[312940164,1706471444088,-1836.48,0.00035575,5]
[312940166,1706471444099,-156.1,0.00035617,2]